bitfinex-derivatives/quotes_ETHF0:USTF0_20241005
["timestamp","ask_amount","ask_price","bid_price","bid_amount"]
[1728122735857,1.12413,2425.1,2424.9,0.28865]
[1728122736058,1.12413,2425.1,2424.9,0.69535]
[1728122738255,1.12413,2425.1,2424.9,0.4067]
[1728122738858,0.8355,2425.1,2424.9,0.69535]
[1728122739051,2.3255,2425.1,2424.8,3.2078]
[1728122739259,0.28868,2424.7,2424.6,0.384]
[1728122739555,0.28868,2424.7,2424.3,1.91525529]
[1728122739556,0.28869,2424.6,2424.3,0.28872]
[1728122739761,1.53709,2424.6,2424.3,0.28872]
[1728122740863,1.53709,2424.6,2424.2,1.48423529]
[1728122740864,1.53709,2424.6,2424.2,0.70343]
[1728122741253,1.53709,2424.6,2424.3,0.28872]
[1728122741955,1.53709,2424.6,2424.2,0.70343]
[1728122742267,1.53709,2424.6,2424.1,6.05607529]
[1728122742268,0.28871,2424.5,2424.1,6.05607529]
[1728122742467,0.28871,2424.4,2424.1,4.98654]
[1728122746359,1.49,2424.5,2424.1,4.98654]
[1728122746360,1.7787,2424.5,2424.1,4.98654]
[1728122748968,0.28872,2424.4,2424.1,4.6978]
[1728122749373,1.49,2424.4,2424.1,3.2078]
[1728122749667,0.28873,2424.3,2424.1,3.2078]
[1728122750363,0.4035,2424.2,2424.1,3.2078]
[1728122752172,0.4035,2424.2,2424.1,4.6978]
[1728122752760,0.28872,2424.4,2424.1,4.6978]
[1728122752979,0.69062,2424.4,2424.1,1.49]
[1728122753868,0.4019,2424.4,2424.1,1.49]
[1728122754065,0.69062,2424.4,2424.1,1.49]
[1728122755367,0.28873,2424.3,2424.1,1.49]
[1728122756871,0.4019,2424.4,2424.1,1.49]
[1728122757073,0.69062,2424.4,2424.1,1.49]
[1728122757272,0.28873,2424.3,2424.1,1.49]
[1728122759068,0.28872,2424.3,2424.1,1.49]
[1728122759673,0.4019,2424.4,2424.1,1.49]
[1728122759876,0.28873,2424.3,2424.1,1.49]
[1728122760078,0.28873,2424.3,2424.0,3.5951]
[1728122761477,0.4019,2424.4,2424.0,3.5951]
[1728122761677,0.28873,2424.3,2424.0,3.5951]
[1728122762370,1.8919,2424.4,2424.0,3.5951]
[1728122762566,0.28875,2424.1,2424.0,3.5951]
[1728122763375,0.28875,2424.1,2424.0,0.3873]
[1728122764078,0.68514,2424.2,2424.0,0.3873]
[1728122764880,0.395,2424.1,2424.0,0.3873]
[1728122765277,1.885,2424.1,2423.8,0.816]
[1728122765481,0.412,2424.0,2423.8,1.2264]
[1728122765976,0.412,2424.0,2423.8,1.51518]
[1728122766778,0.412,2424.0,2423.9,0.28877]
[1728122766984,0.68375,2424.1,2423.8,1.51518]
[1728122767484,0.395,2424.1,2423.8,1.51518]
[1728122768580,0.68375,2424.1,2423.8,1.51518]
[1728122769681,0.395,2424.1,2423.8,1.2264]
[1728122769876,0.395,2424.1,2423.9,0.28877]
[1728122770796,0.395,2424.1,2423.8,1.51517]
[1728122771288,0.68375,2424.1,2423.8,1.51517]
[1728122772184,0.395,2424.1,2423.9,0.28877]
[1728122773487,2.17514,2424.2,2423.9,0.28877]
[1728122773690,2.58184,2424.2,2423.9,0.28877]
[1728122775383,2.58184,2424.2,2423.8,1.2264]
[1728122775791,2.58184,2424.2,2423.9,0.28877]
[1728122776782,7.4898,2424.7,2424.0,4.6978]
[1728122776983,0.28871,2424.5,2424.2,0.28873]
[1728122777186,0.28871,2424.5,2424.2,1.08283]
[1728122778491,0.28871,2424.4,2424.2,1.08283]
[1728122779393,2.7259,2424.6,2424.2,0.7941]
[1728122779588,3.01459,2424.6,2424.3,0.28871]
[1728122780093,3.01459,2424.6,2424.4,0.389]
[1728122780094,2.7259,2424.6,2424.4,0.389]
[1728122780393,0.28865,2425.0,2424.7,0.28867]
[1728122780593,0.8362,2425.1,2424.9,0.28865]
[1728122780783,0.4143,2425.1,2424.9,0.28865]
[1728122781097,0.4143,2425.1,2424.9,1.09645]
[1728122781393,0.70293,2425.1,2424.9,0.8078]
[1728122781587,0.4143,2425.1,2424.9,0.8078]
[1728122781778,0.70294,2425.1,2424.9,0.8078]
[1728122782389,0.70294,2425.1,2424.8,2.16766]
[1728122782691,0.4219,2425.0,2424.8,2.16766]
[1728122785393,0.4219,2425.0,2424.8,1.879]
[1728122785394,0.71055,2425.0,2424.8,1.879]
[1728122785799,0.71055,2425.0,2424.8,2.16766]
[1728122785981,0.4219,2425.0,2424.8,2.16766]
[1728122788492,0.71054,2425.0,2424.8,2.16766]
[1728122790190,0.71054,2425.0,2424.8,1.879]
[1728122794199,0.71055,2425.0,2424.8,0.389]
[1728122794395,0.3907,2424.9,2424.8,0.389]
[1728122795093,0.3907,2424.9,2424.8,0.67766]
[1728122796902,0.70293,2425.1,2424.9,0.28865]
[1728122797097,0.70293,2425.1,2424.8,2.16766]
[1728122797300,0.70293,2425.1,2424.9,0.28865]
[1728122797494,0.70293,2425.1,2424.8,2.16766]
[1728122799105,0.28864,2425.0,2424.8,2.16766]
[1728122801496,0.28864,2425.0,2424.8,2.86527063]
[1728122802794,0.28864,2425.0,2424.8,2.16766]
[1728122802992,0.8399,2424.9,2424.8,2.16766]
[1728122803605,0.8399,2424.9,2424.8,1.879]
[1728122803802,0.8399,2424.9,2424.8,2.16766]
[1728122804106,0.8399,2424.9,2424.8,0.67766]
[1728122812403,0.8399,2424.9,2424.8,2.16766]
[1728122812603,0.4223,2424.9,2424.8,2.16766]
[1728122820925,1.09393,2425.1,2424.9,0.28865]
[1728122821126,1.50913,2425.1,2424.9,0.28865]
[1728122821423,1.50913,2425.1,2424.8,1.879]
[1728122821628,1.50913,2425.1,2424.9,0.28865]
[1728122825033,1.2205,2425.1,2424.9,0.28865]
[1728122826329,1.2205,2425.1,2424.9,1.36857704]
[1728122826330,1.74474418,2425.0,2424.9,1.36857704]
[1728122826530,1.74474418,2425.0,2424.9,2.79708388]
[1728122826731,1.74474418,2425.0,2424.9,2.79707402]
[1728122829635,1.74474418,2425.0,2424.9,2.79759185]
[1728122831032,1.74474418,2425.0,2424.9,8.95103754]
[1728122831235,0.28857,2425.6,2425.4,0.28859]
[1728122831438,10.63958135,2425.7,2425.4,1.77859]
[1728122831439,1.2084,2425.5,2425.4,1.77859]
[1728122831638,1.2084,2425.5,2425.4,2.85831892]
[1728122831833,1.2084,2425.5,2425.4,1.49]
[1728122832030,1.88658177,2425.5,2425.4,1.49]
[1728122832236,1.2084,2425.5,2425.4,1.77859]
[1728122834342,1.2084,2425.5,2425.4,1.49]
[1728122834343,1.49698,2425.5,2425.4,1.49]
[1728122834639,1.2084,2425.5,2425.4,0.28859]
[1728122834843,1.49699,2425.5,2425.3,1.7786]
[1728122835041,1.2084,2425.5,2425.4,0.28859]
[1728122835346,1.49698,2425.5,2425.3,1.7786]
[1728122835731,1.2084,2425.5,2425.3,1.49]
[1728122835932,1.2084,2425.5,2425.4,1.77859]
[1728122836841,0.28855,2425.8,2425.6,0.28857]
[1728122837048,1.10345,2425.8,2425.6,0.28857]
[1728122838044,1.10345,2425.8,2425.7,0.28856]
[1728122838243,1.10345,2425.8,2425.6,0.28856]
[1728122838737,1.10345,2425.8,2425.7,0.28856]
[1728122838939,0.8149,2425.8,2425.7,1.77856]
[1728122844340,0.8149,2425.8,2425.7,1.49]
[1728122845651,0.8149,2425.8,2425.7,1.77856]
[1728122846047,3.2078,2426.2,2425.9,0.28853]
[1728122846048,0.28851,2426.1,2425.9,0.28853]
[1728122846243,0.28851,2426.1,2426.0,1.49]
[1728122847045,4.71911,2426.2,2426.0,1.49]
[1728122847448,0.28851,2426.1,2426.0,1.49]
[1728122848151,4.4306,2426.2,2426.0,1.49]
[1728122848356,4.7191,2426.2,2426.0,1.77852]
[1728122851155,1.5113,2426.2,2426.0,1.77852]
[1728122851356,4.7191,2426.2,2426.0,1.77852]
[1728122852055,1.5113,2426.2,2426.0,1.77852]
[1728122852657,4.7191,2426.2,2426.0,1.77852]
[1728122853263,1.5113,2426.2,2426.0,1.77852]
[1728122853457,4.7191,2426.2,2426.0,1.77852]
[1728122854449,4.7191,2426.2,2426.0,1.49]
[1728122854654,4.7191,2426.2,2426.0,1.77852]
[1728122858254,4.7191,2426.2,2426.0,1.49]
[1728122858562,4.7191,2426.2,2426.0,1.77852]
[1728122858962,4.4306,2426.2,2426.0,1.49]
[1728122859263,0.28851,2426.1,2426.0,1.49]
[1728122859460,4.71911,2426.2,2426.0,1.49]
[1728122859662,4.4306,2426.2,2426.0,1.77851]
[1728122860562,4.7191,2426.2,2426.0,1.77851]
[1728122863570,4.4306,2426.2,2426.0,1.77851]
[1728122863973,1.2228,2426.2,2426.0,1.77851]
[1728122864168,4.4306,2426.2,2426.0,1.77851]
[1728122864567,1.2228,2426.2,2426.0,1.77851]
[1728122864766,4.4306,2426.2,2426.0,1.77851]
[1728122865267,1.2228,2426.2,2426.0,1.77851]
[1728122866174,4.4306,2426.2,2426.0,1.77851]
[1728122866365,1.2228,2426.2,2426.0,1.77851]
[1728122866668,1.2228,2426.2,2426.1,0.28851]
[1728122866669,4.4306,2426.2,2426.1,0.28851]
[1728122867865,1.2228,2426.2,2426.1,0.28851]
[1728122868968,4.4306,2426.2,2426.1,0.28851]
[1728122869367,1.2228,2426.2,2426.1,0.28851]
[1728122869565,4.4306,2426.2,2426.1,0.28851]
[1728122870078,0.4136,2426.2,2426.1,0.28851]
[1728122870281,4.30597,2426.5,2426.1,0.68141]
[1728122870473,0.3892,2426.4,2426.3,1.49]
[1728122870667,0.3892,2426.4,2426.3,1.77849]
[1728122870872,3.2078,2426.5,2426.4,0.28847]
[1728122871077,0.8383,2426.7,2426.6,0.28844]
[1728122871273,0.8383,2426.7,2426.6,1.77844]
[1728122871574,0.8383,2426.7,2426.6,1.49]
[1728122872775,1.12675,2426.7,2426.5,1.49]
[1728122872985,0.4211,2426.6,2426.5,1.49]
[1728122882587,0.70955,2426.6,2426.5,1.49]
[1728122884385,0.8383,2426.7,2426.5,1.49]
[1728122884586,0.8383,2426.7,2426.6,0.28845]
[1728122884877,3.92342,2426.9,2426.6,0.67325]
[1728122885076,3.92342,2426.9,2426.8,1.49]
[1728122885281,4.97581576,2426.9,2426.8,1.49]
[1728122885789,5.65137143,2426.9,2426.8,1.49]
[1728122886380,2.44357143,2426.9,2426.8,1.49]
[1728122886989,2.15515143,2426.9,2426.7,1.49]
[1728122887195,0.68823,2426.8,2426.7,1.49]
[1728122895789,0.3998,2426.8,2426.7,1.49]
[1728122895991,0.4272,2426.9,2426.8,0.28843]
[1728122896188,0.4272,2426.9,2426.8,2.18763]
[1728122896389,0.71561,2426.9,2426.8,1.49]
[1728122897993,0.4272,2426.9,2426.8,1.49]
[1728122899604,0.4272,2426.9,2426.8,1.77843]
[1728122900193,3.91661,2427.0,2426.8,1.77843]
[1728122900194,3.0554,2427.0,2426.8,1.77843]
[1728122900494,3.49621,2427.0,2426.8,1.49]
[1728122901100,3.2078,2427.0,2426.8,1.77842]
[1728122902291,0.6835,2427.1,2426.8,1.77842]
[1728122902487,3.2078,2427.0,2426.8,1.77842]
[1728122903499,1.11501,2426.9,2426.8,1.49]
[1728122903703,0.8266,2426.9,2426.8,1.49]
[1728122903897,1.11501,2426.9,2426.8,1.49]
[1728122906499,2.16778843,2426.9,2426.8,1.49]
[1728122907603,2.84359008,2426.9,2426.8,1.49]
[1728122909295,2.55518008,2426.9,2426.4,0.72230641]
[1728122909504,0.70343,2426.8,2426.7,1.49]
[1728122909803,0.415,2426.8,2426.7,1.49]
[1728122910098,0.70343,2426.8,2426.7,1.49]
[1728122915800,0.415,2426.8,2426.7,1.49]
[1728122916203,0.70343,2426.8,2426.7,1.49]
[1728122916503,1.38066453,2426.8,2426.7,1.49]
[1728122917304,1.38068457,2426.8,2426.7,1.49]
[1728122918306,2.43573438,2426.8,2426.7,1.49]
[1728122918900,2.14730438,2426.8,2426.7,1.49]
[1728122919202,1.73230438,2426.8,2426.7,1.883]
[1728122920005,2.02073438,2426.8,2426.7,1.883]
[1728122920204,1.73230438,2426.8,2426.7,2.17144]
[1728122920400,1.73230438,2426.8,2426.7,3.24700181]
[1728122924111,1.73230438,2426.8,2426.7,2.17144]
[1728122925306,0.28842,2426.9,2426.7,1.883]
[1728122925609,3.52388832,2426.9,2426.8,1.49]
[1728122925809,3.52388832,2426.9,2426.8,1.8828]
[1728122927412,5.25615275,2426.9,2426.8,1.8828]
[1728122928510,2.02067443,2426.9,2426.8,1.8828]
[1728122928716,5.26414329,2426.9,2426.8,1.8828]
[1728122928911,2.02067443,2426.9,2426.8,1.8828]
[1728122929412,5.26414703,2426.9,2426.8,1.8828]
[1728122929604,2.02067443,2426.9,2426.8,1.8828]
[1728122929914,5.79539913,2426.9,2426.8,1.49]
[1728122931220,2.02067443,2426.9,2426.8,1.49]
[1728122936218,2.02067443,2426.9,2426.8,1.894]
[1728122936919,1.73226443,2426.9,2426.8,1.894]
[1728122937416,1.73226443,2426.9,2426.8,2.18243]
[1728122938413,2.02067443,2426.9,2426.8,1.894]
[1728122945115,1.73226443,2426.9,2426.8,2.18243]
[1728122945318,3.92172135,2426.9,2426.8,2.18243]
[1728122945723,0.67744878,2426.9,2426.8,2.18243]
[1728122946121,3.53268257,2427.0,2426.8,2.18243]
[1728122946323,0.28841,2427.0,2426.8,3.25799181]
[1728122946527,1.34371781,2427.0,2426.9,0.4044]
[1728122949722,0.28841,2427.0,2426.9,0.4044]
[1728122954333,0.2884,2427.0,2426.9,0.69281]
[1728122954631,4.0472,2427.1,2426.9,0.4044]
[1728122954828,0.2884,2427.0,2426.9,0.4044]
[1728122955228,4.0472,2427.1,2426.9,0.4044]
[1728122955426,4.3356,2427.1,2427.0,1.49]
[1728122955625,5.39051481,2427.1,2427.0,1.49]
[1728122957829,2.18271481,2427.1,2427.0,1.49]
[1728122959035,1.1278,2427.1,2427.0,1.49]
[1728122970434,0.1278,2427.1,2427.0,1.49]
[1728122970736,0.67648,2427.2,2427.0,1.7784]
[1728122970940,0.3881,2427.2,2427.0,1.7784]
[1728122971130,0.67649,2427.2,2427.0,2.1852]
[1728122974235,0.67649,2427.2,2427.0,1.8968]
[1728122974236,0.3881,2427.2,2427.0,1.8968]
[1728122974431,0.3881,2427.2,2427.1,0.28839]
[1728122975735,0.67648,2427.2,2427.0,3.26076181]
[1728122976444,0.67648,2427.2,2427.0,2.1852]
[1728122979944,0.3881,2427.2,2427.0,1.8968]
[1728122980139,0.3881,2427.2,2427.1,0.28839]
[1728122980642,0.67648,2427.2,2427.0,2.18519]
[1728122981039,0.28838,2427.2,2427.1,0.28839]
[1728122981345,0.28839,2427.2,2427.0,2.1852]
[1728122982049,0.28837,2427.3,2427.1,0.28838]
[1728122982241,0.28837,2427.3,2427.2,1.49]
[1728122982441,0.28837,2427.3,2427.2,1.9134]
[1728122991043,0.8115,2427.5,2427.2,1.9134]
[1728122991242,1.09984,2427.5,2427.4,1.49]
[1728122995646,0.8115,2427.5,2427.4,1.49]
[1728122996655,0.8115,2427.5,2427.4,1.77835]
[1728122996846,0.8115,2427.5,2427.4,2.17625]
[1728122997148,19.80284,2427.6,2427.4,2.17625]
[1728122997544,19.80284,2427.6,2427.5,0.4099]
[1728123000350,19.5145,2427.6,2427.5,0.4099]
[1728123000554,19.80283,2427.6,2427.5,0.4099]
[1728123001754,19.5145,2427.6,2427.5,0.69824]
[1728123002049,19.80283,2427.6,2427.5,0.4099]
[1728123006347,19.5145,2427.6,2427.5,0.69824]
[1728123006553,19.80283,2427.6,2427.5,0.4099]
[1728123012061,19.80283,2427.6,2427.4,0.4125]
[1728123012062,26.8415,2427.6,2427.4,0.4125]
[1728123012246,0.28838,2427.2,2427.1,1.874]
[1728123012451,0.28838,2427.2,2427.1,1.49]
[1728123013158,0.68738,2427.2,2427.1,1.49]
[1728123013354,0.28841,2427.0,2426.8,0.69852]
[1728123013545,0.4156,2426.9,2426.8,0.69852]
[1728123018261,0.4156,2426.9,2426.8,2.18852]
[1728123032379,0.68339,2427.1,2426.9,0.28841]
[1728123032570,1.10739,2427.1,2427.0,1.49]
[1728123035876,0.819,2427.1,2427.0,1.49]
[1728123036764,0.819,2427.1,2427.0,1.7784]
[1728123039180,0.395,2427.1,2427.0,1.7784]
[1728123039572,0.28839,2427.2,2427.0,1.7784]
[1728123039778,0.4094,2427.3,2427.1,0.8022]
[1728123039976,0.4187,2427.5,2427.4,0.28835]
[1728123040176,19.5145,2427.6,2427.5,0.28834]
[1728123040683,19.5145,2427.6,2427.5,1.11274]
[1728123041179,19.80283,2427.6,2427.5,0.4168]
[1728123041385,0.28834,2427.5,2427.4,1.49]
[1728123042074,0.69274,2427.5,2427.4,1.49]
[1728123042988,1.11804,2427.5,2427.4,1.49]
[1728123045990,19.5145,2427.6,2427.5,0.28834]
[1728123046186,19.5145,2427.6,2427.5,0.414]
[1728123046385,19.5145,2427.6,2427.5,5.23214]
[1728123046891,19.5145,2427.6,2427.5,1.11294]
[1728123052101,19.80283,2427.6,2427.5,0.4106]
[1728123052293,19.80283,2427.6,2427.5,1.9006]
[1728123056099,19.5145,2427.6,2427.5,1.9006]
[1728123056491,19.5145,2427.6,2427.5,6.30814]
[1728123061901,19.5145,2427.6,2427.5,6.73084]
[1728123067910,19.5145,2427.6,2427.5,7.15044]
[1728123068210,19.5145,2427.6,2427.5,3.03124]
[1728123070610,19.5145,2427.6,2427.5,2.18894]
[1728123070810,19.9368,2427.6,2427.5,2.18894]
[1728123081410,19.9368,2427.6,2427.5,3.26450181]
[1728123081815,19.9368,2427.6,2427.5,2.18894]
[1728123082425,19.9368,2427.6,2427.5,3.26450181]
[1728123084522,19.9368,2427.6,2427.5,4.69186641]
[1728123085519,19.9368,2427.6,2427.5,5.22964732]
[1728123085917,19.9368,2427.6,2427.5,5.23016382]
[1728123088423,19.9368,2427.6,2427.5,4.81956382]
[1728123090728,19.9368,2427.6,2427.5,4.82002054]
[1728123096017,19.9368,2427.6,2427.5,3.20667782]
[1728123097727,19.9368,2427.6,2427.5,4.82051184]
[1728123097926,19.9368,2427.6,2427.5,3.20667782]
[1728123098928,19.9368,2427.6,2427.5,4.82029511]
[1728123099428,19.9368,2427.6,2427.5,3.20667782]
[1728123100427,19.9368,2427.6,2427.5,3.20662015]
[1728123102433,19.9368,2427.6,2427.5,5.35774378]
[1728123104439,19.5145,2427.6,2427.5,8.2157667]
[1728123104639,19.5145,2427.6,2427.5,11.4235667]
[1728123106342,19.5145,2427.6,2427.5,11.42604861]
[1728123111542,19.5145,2427.6,2427.5,9.27244307]
[1728123112635,19.5145,2427.6,2427.5,11.42628393]
[1728123113028,19.5145,2427.6,2427.5,11.42638949]
[1728123113232,19.5145,2427.6,2427.5,9.27244307]
[1728123113433,19.5145,2427.6,2427.5,11.42651014]
[1728123113636,19.5145,2427.6,2427.5,8.21871014]
[1728123114837,19.5145,2427.6,2427.5,3.93240707]
[1728123115035,19.5145,2427.6,2427.5,8.22240732]
[1728123115345,19.5145,2427.6,2427.5,8.22245164]
[1728123117045,19.5145,2427.6,2427.5,7.93411164]
[1728123117352,19.5145,2427.6,2427.5,8.22268887]
[1728123117949,19.5145,2427.6,2427.5,5.07428093]
[1728123118339,19.5145,2427.6,2427.5,2.91991535]
[1728123119746,19.5145,2427.6,2427.5,4.53593264]
[1728123120646,19.80283,2427.6,2427.5,4.53598826]
[1728123120850,19.80283,2427.6,2427.5,4.53599784]
[1728123122551,19.80283,2427.6,2427.5,2.92002564]
[1728123122845,19.80283,2427.6,2427.5,4.53580089]
[1728123122846,19.5145,2427.6,2427.5,4.53580089]
[1728123123141,19.5145,2427.6,2427.5,4.82400606]
[1728123128059,19.5145,2427.6,2427.5,4.82379967]
[1728123129745,19.80283,2427.6,2427.5,4.53545967]
[1728123129947,19.80283,2427.6,2427.5,3.04545967]
[1728123130151,19.80283,2427.6,2427.5,1.42968442]
[1728123130351,19.80283,2427.6,2427.5,3.04545967]
[1728123130548,19.80283,2427.6,2427.5,2.50664189]
[1728123131153,19.80283,2427.6,2427.4,1.07695747]
[1728123131154,0.28834,2427.5,2427.4,1.07695747]
[1728123131959,0.28834,2427.5,2427.4,2.50669225]
[1728123132158,0.28834,2427.5,2427.4,1.36530747]
[1728123132458,0.28834,2427.5,2427.4,1.07695747]
[1728123132661,0.28834,2427.5,2427.4,2.50649812]
[1728123132958,0.28834,2427.5,2427.4,2.50651969]
[1728123132959,4.40754,2427.5,2427.4,2.50651969]
[1728123133158,4.40754,2427.5,2427.4,1.07695747]
[1728123133959,0.28835,2427.4,2427.3,4.28475747]
[1728123134164,1.46325,2427.4,2427.3,5.71427195]
[1728123134357,1.46325,2427.4,2427.3,4.28475747]
[1728123135762,1.46325,2427.4,2427.3,1.07695747]
[1728123137263,1.8374343,2427.4,2427.2,3.27622747]
[1728123137458,0.3741843,2427.3,2427.2,3.27622747]
[1728123137760,0.3741843,2427.3,2427.2,4.70519541]
[1728123139260,0.3741843,2427.3,2427.2,3.27622747]
[1728123141458,0.3741843,2427.3,2427.2,1.78622747]
[1728123141459,0.37401825,2427.3,2427.2,1.78622747]
[1728123142054,0.37401825,2427.3,2427.2,0.70927]
[1728123143679,0.37401825,2427.3,2427.2,1.78622747]
[1728123144271,0.37401825,2427.3,2427.2,0.70927]
[1728123144967,0.37394801,2427.3,2427.2,0.70927]
[1728123145167,1.46325,2427.4,2427.2,0.70927]
[1728123145962,0.28837,2427.3,2427.2,0.4209]
[1728123146373,4.40837,2427.3,2427.2,0.4209]
[1728123148382,0.7808,2427.4,2427.3,0.28837]
[1728123148577,19.5145,2427.6,2427.2,1.9109]
[1728123148784,0.28835,2427.5,2427.3,0.28836]
[1728123148980,0.28835,2427.5,2427.3,0.67926]
[1728123149193,4.12,2427.4,2427.3,0.67926]
[1728123149801,4.40835,2427.4,2427.3,0.3909]
[1728123152891,4.12,2427.4,2427.3,0.3909]
[1728123153100,4.12,2427.4,2427.3,0.7857]
[1728123154091,4.12,2427.4,2427.3,1.07407]
[1728123157700,4.12,2427.4,2427.2,0.4209]
[1728123157701,5.61,2427.4,2427.2,0.4209]
[1728123157994,0.70887,2427.3,2427.2,0.4209]
[1728123158694,0.4205,2427.3,2427.0,3.8802]
[1728123158896,2.20338,2427.2,2427.1,0.4237]
[1728123159096,0.28839,2427.1,2426.9,0.8015]
[1728123159298,0.2884,2427.0,2426.9,1.2252]
[1728123159598,0.6826,2427.1,2426.9,1.51361]
[1728123159800,2.1726,2427.1,2426.9,1.51361]
[1728123165012,5.61,2427.0,2426.7,0.4125]
[1728123165304,2.19901,2427.0,2426.8,0.71252]
[1728123165506,6.31981,2427.0,2426.8,0.71252]
[1728123165704,6.31981,2427.0,2426.9,0.28841]
[1728123165905,6.0314,2427.0,2426.9,0.28841]
[1728123166106,6.0306,2427.0,2426.9,0.28841]
[1728123170911,1.9106,2427.0,2426.9,0.28841]
[1728123171214,6.0306,2427.0,2426.9,0.28841]
[1728123177812,6.319,2427.0,2426.8,0.71252]
[1728123178012,2.199,2427.0,2426.8,0.71252]
[1728123179416,0.4207,2426.9,2426.8,0.71252]
[1728123183427,1.49,2427.0,2426.9,0.28841]
[1728123183628,1.49,2427.0,2426.9,0.70491]
[1728123184734,1.7784,2427.0,2426.9,0.4165]
[1728123184920,1.7784,2427.0,2426.9,0.70491]
[1728123187825,1.7784,2427.0,2426.9,1.10881]
[1728123200341,2.87848674,2427.0,2426.9,1.10881]
[1728123200535,0.28843,2426.8,2426.6,1.36366936]
[1728123200737,1.49,2426.7,2426.6,0.69535]
[1728123201243,1.77844,2426.7,2426.6,0.4069]
[1728123202342,1.49,2426.7,2426.6,0.4069]
[1728123203549,2.59091272,2426.7,2426.6,0.4069]
[1728123203936,2.87935272,2426.7,2426.6,0.4069]
[1728123204342,2.59091272,2426.7,2426.6,0.4069]
[1728123206055,2.59091272,2426.7,2426.6,0.69535]
[1728123207144,2.59091272,2426.7,2426.6,0.4069]
[1728123210245,2.59091272,2426.7,2426.6,0.69535]
[1728123212652,2.59031362,2426.7,2426.6,0.69535]
[1728123214253,1.49,2426.7,2426.6,0.69535]
[1728123215151,1.49,2426.7,2426.4,0.7978]
[1728123215152,2.59019586,2426.7,2426.4,0.7978]
[1728123215344,1.49,2426.5,2426.4,0.4241]
[1728123216046,1.9165,2426.5,2426.4,0.71257]
[1728123217757,1.9165,2426.5,2426.4,0.4241]
[1728123218560,3.01633623,2426.5,2426.4,0.4241]
[1728123219159,1.9165,2426.5,2426.4,0.4241]
[1728123219859,1.9165,2426.5,2426.2,0.4124]
[1728123220158,1.49,2426.3,2426.2,1.12129]
[1728123220348,1.77849,2426.3,2426.2,0.8328]
[1728123221053,8.8194,2426.3,2426.0,0.384]
[1728123221252,1.49,2426.1,2426.0,0.4204]
[1728123221753,1.49,2426.1,2426.0,0.70892]
[1728123222650,4.6978,2426.1,2426.0,0.4204]
[1728123223357,4.98631,2426.1,2426.0,0.4204]
[1728123223560,4.98631,2426.1,2425.9,0.4124]
[1728123223751,4.98631,2426.1,2425.9,0.809]
[1728123224658,4.98631,2426.1,2425.9,0.3966]
[1728123225059,1.77851,2426.1,2425.9,0.3966]
[1728123225260,4.98631,2426.1,2425.9,0.3966]
[1728123227761,1.77851,2426.1,2425.9,0.3966]
[1728123227961,4.98631,2426.1,2425.9,0.3966]
[1728123228960,1.77851,2426.1,2425.9,0.3966]
[1728123229160,4.98631,2426.1,2425.9,0.3966]
[1728123229661,1.77851,2426.1,2425.9,0.3966]
[1728123230163,4.98631,2426.1,2425.9,0.3966]
[1728123230754,1.77851,2426.1,2425.9,0.3966]
[1728123230950,4.98631,2426.1,2425.9,0.3966]
[1728123231666,3.2078,2426.1,2426.0,0.28852]
[1728123231958,4.6978,2426.1,2426.0,0.4271]
[1728123232155,4.98631,2426.1,2426.0,0.4271]
[1728123233963,1.77851,2426.1,2426.0,0.4271]
[1728123234566,4.98631,2426.1,2426.0,0.4271]
[1728123234860,1.77851,2426.1,2426.0,0.4271]
[1728123235056,4.98631,2426.1,2426.0,0.4271]
[1728123239764,1.77851,2426.1,2426.0,0.4271]
[1728123240064,4.98631,2426.1,2426.0,0.4271]
[1728123241564,1.77851,2426.1,2426.0,0.4271]
[1728123241768,4.98631,2426.1,2426.0,0.4271]
[1728123243169,1.77851,2426.1,2426.0,0.4271]
[1728123243972,4.98631,2426.1,2426.0,0.4271]
[1728123244674,1.77851,2426.1,2426.0,0.4271]
[1728123244972,4.98631,2426.1,2426.0,0.4271]
[1728123246571,4.98631,2426.1,2426.0,0.71562]
[1728123247768,1.77851,2426.1,2426.0,0.71562]
[1728123248168,4.98631,2426.1,2426.0,0.71562]
[1728123248679,1.77851,2426.1,2426.0,0.71562]
[1728123249470,4.98631,2426.1,2426.0,0.4271]
[1728123249868,4.98631,2426.1,2425.9,0.3966]
[1728123249869,0.28852,2426.0,2425.9,0.3966]
[1728123253376,5.1184,2426.1,2425.9,0.68513]
[1728123253377,5.40692,2426.1,2425.9,0.68513]
[1728123253568,1.49,2426.1,2426.0,0.28852]
[1728123253971,1.49,2426.1,2426.0,0.71082]
[1728123256776,1.49,2426.1,2426.0,0.4223]
[1728123257474,1.77851,2426.1,2426.0,0.4223]
[1728123264378,2.87939471,2426.1,2426.0,0.4223]
[1728123264680,2.87939471,2426.1,2425.9,0.68512]
[1728123264881,0.28852,2426.0,2425.9,0.3966]
[1728123265081,0.69812,2426.0,2425.9,0.3966]
[1728123265284,1.7990437,2426.0,2425.9,0.3966]
[1728123267779,3.2890437,2426.0,2425.9,0.3966]
[1728123268181,0.28854,2425.9,2425.7,4.57156936]
[1728123268379,1.9073,2425.8,2425.7,4.57156936]
[1728123268575,1.9073,2425.8,2425.7,1.36376936]
[1728123271889,0.4173,2425.8,2425.7,1.36376936]
[1728123272186,1.916,2425.9,2425.8,0.28855]
[1728123272393,3.01729108,2425.9,2425.8,0.28855]
[1728123272891,3.01726608,2425.9,2425.8,0.28855]